[Event "Titled Tuesday Blitz January 17 Early 2023"]
[White "Harsh Suresh"]
[Black "Trent, Lawrence"]
[WhiteFideId "45018464"]
[BlackFideId "408638"]
[WhiteElo "2298"]
[BlackElo "2403"]
[Result "0-1"]
[Round "02"]
[TimeControl "180+2"]
[Date "2023.01.17"]
[WhiteClock "0:00:15"]
[BlackClock "0:00:02"]

1. e4 {[%clk 0:02:58]}  c5 {[%clk 0:02:58]} 2. Nc3 {[%clk 0:02:57]}  d6 {[%clk 0:02:56]} 3. f4 {[%clk 0:02:57]}  Nc6 {[%clk 0:02:54]} 4. Nf3 {[%clk 0:02:57]}  a6 {[%clk 0:02:54]} 5. Bc4 {[%clk 0:02:56]}  b5 {[%clk 0:02:54]} 6. Bd5 {[%clk 0:02:56]}  Bd7 {[%clk 0:02:52]} 7. O-O {[%clk 0:02:46]}  e6 {[%clk 0:02:52]} 8. Bxc6 {[%clk 0:02:46]}  Bxc6 {[%clk 0:02:53]} 9. d3 {[%clk 0:02:36]}  Nf6 {[%clk 0:02:53]} 10. Qe1 {[%clk 0:02:36]}  Be7 {[%clk 0:02:52]} 11. b3 {[%clk 0:02:36]}  b4 {[%clk 0:02:34]} 12. Ne2 {[%clk 0:02:32]}  a5 {[%clk 0:02:35]} 13. a4 {[%clk 0:02:31]}  bxa3 {[%clk 0:02:34]} 14. Bxa3 {[%clk 0:02:28]}  O-O {[%clk 0:02:33]} 15. Nc3 {[%clk 0:02:09]}  Nd7 {[%clk 0:02:26]} 16. Bb2 {[%clk 0:02:07]}  Nb6 {[%clk 0:02:19]} 17. Qg3 {[%clk 0:02:01]}  f6 {[%clk 0:02:19]} 18. d4 {[%clk 0:01:44]}  d5 {[%clk 0:02:10]} 19. exd5 {[%clk 0:01:38]}  Nxd5 {[%clk 0:01:57]} 20. Nxd5 {[%clk 0:01:33]}  Bxd5 {[%clk 0:01:57]} 21. c4 {[%clk 0:01:29]}  Bb7 {[%clk 0:01:36]} 22. Rfd1 {[%clk 0:01:26]}  Qb6 {[%clk 0:01:35]} 23. Ba3 {[%clk 0:01:01]}  Qxb3 {[%clk 0:01:28]} 24. Bxc5 {[%clk 0:00:47]}  Bxc5 {[%clk 0:01:26]} 25. dxc5 {[%clk 0:00:48]}  Bxf3 {[%clk 0:01:16]} 26. gxf3 {[%clk 0:00:34]}  Rfd8 {[%clk 0:01:10]} 27. Rdc1 {[%clk 0:00:17]}  Qe3+ {[%clk 0:01:06]} 28. Qf2 {[%clk 0:00:17]}  Qxf4 {[%clk 0:01:06]} 29. Re1 {[%clk 0:00:09]}  Rd2 {[%clk 0:01:05]} 30. Re2 {[%clk 0:00:09]}  Rxe2 {[%clk 0:01:05]} 31. Qxe2 {[%clk 0:00:10]}  Qd4+ {[%clk 0:01:05]} 32. Kg2 {[%clk 0:00:10]}  Qxa1 {[%clk 0:01:03]} 33. Qxe6+ {[%clk 0:00:11]}  Kh8 {[%clk 0:01:03]} 34. Qd5 {[%clk 0:00:11]}  Rb8 {[%clk 0:01:00]} 35. c6 {[%clk 0:00:11]}  Rb2+ {[%clk 0:00:50]} 36. Kh3 {[%clk 0:00:11]}  Qf1+ {[%clk 0:00:50]} 37. Kg4 {[%clk 0:00:12]}  Qg2+ {[%clk 0:00:48]} 38. Kf5 {[%clk 0:00:09]}  Qg6+ {[%clk 0:00:45]} 39. Ke6 {[%clk 0:00:08]}  Qe8+ {[%clk 0:00:43]} 40. Kd6 {[%clk 0:00:08]}  Qd8+ {[%clk 0:00:37]} 41. Kc5 {[%clk 0:00:09]}  Qe7+ {[%clk 0:00:31]} 42. Qd6 {[%clk 0:00:06]}  Qe3+ {[%clk 0:00:26]} 43. Qd4 {[%clk 0:00:03]}  Qxd4+ {[%clk 0:00:23]} 44. Kxd4 {[%clk 0:00:04]}  Rb8 {[%clk 0:00:23]} 45. Kc5 {[%clk 0:00:04]}  a4 {[%clk 0:00:24]} 46. c7 {[%clk 0:00:04]}  Rc8 {[%clk 0:00:23]} 47. Kd6 {[%clk 0:00:05]}  a3 {[%clk 0:00:24]} 48. Kd7 {[%clk 0:00:05]}  Rxc7+ {[%clk 0:00:24]} 49. Kxc7 {[%clk 0:00:06]}  a2 {[%clk 0:00:25]} 50. c5 {[%clk 0:00:07]}  a1=Q {[%clk 0:00:26]} 51. c6 {[%clk 0:00:08]}  Qe5+ {[%clk 0:00:25]} 52. Kb7 {[%clk 0:00:09]}  Qxh2 {[%clk 0:00:26]} 53. f4 {[%clk 0:00:09]}  Qxf4 {[%clk 0:00:26]} 54. c7 {[%clk 0:00:10]}  Qxc7+ {[%clk 0:00:26]} 55. Ka8 {[%clk 0:00:11]}  Qc8+ {[%clk 0:00:26]} 56. Ka7 {[%clk 0:00:11]}  h5 {[%clk 0:00:26]} 57. Kb6 {[%clk 0:00:11]}  h4 {[%clk 0:00:27]} 58. Ka5 {[%clk 0:00:12]}  h3 {[%clk 0:00:28]} 59. Kb6 {[%clk 0:00:12]}  h2 {[%clk 0:00:28]} 60. Ka7 {[%clk 0:00:13]}  h1=Q {[%clk 0:00:28]} 61. Kb6 {[%clk 0:00:14]}  Qb1+ {[%clk 0:00:28]} 62. Ka5 {[%clk 0:00:15]}  Qa8# {[%clk 0:00:02]} 0-1


[Site "https://www.chess.com"]

[Event "Titled Tuesday Blitz January 17 Early 2023"]
[White "Samunenkov, Ihor"]
[Black "Hirneise, Jens"]
[WhiteFideId "14187086"]
[BlackFideId "24614734"]
[WhiteElo "2501"]
[BlackElo "2277"]
[Result "1-0"]
[Round "02"]
[TimeControl "180+2"]
[Date "2023.01.17"]
[WhiteClock "0:00:05"]
[BlackClock "0:00:13"]

1. e4 {[%clk 0:03:00]}  e5 {[%clk 0:02:57]} 2. Nf3 {[%clk 0:02:59]}  Nf6 {[%clk 0:02:57]} 3. Nxe5 {[%clk 0:02:57]}  d6 {[%clk 0:02:57]} 4. Nf3 {[%clk 0:02:57]}  Nxe4 {[%clk 0:02:58]} 5. Nc3 {[%clk 0:02:58]}  Nf6 {[%clk 0:02:57]} 6. d4 {[%clk 0:02:55]}  Be7 {[%clk 0:02:58]} 7. h3 {[%clk 0:02:56]}  O-O {[%clk 0:02:58]} 8. Bd3 {[%clk 0:02:56]}  Re8 {[%clk 0:02:59]} 9. O-O {[%clk 0:02:56]}  Nbd7 {[%clk 0:02:59]} 10. Re1 {[%clk 0:02:39]}  Bf8 {[%clk 0:02:51]} 11. Rxe8 {[%clk 0:01:56]}  Qxe8 {[%clk 0:02:52]} 12. a4 {[%clk 0:01:57]}  a5 {[%clk 0:02:45]} 13. Bg5 {[%clk 0:01:48]}  c6 {[%clk 0:02:41]} 14. d5 {[%clk 0:01:45]}  Nxd5 {[%clk 0:02:27]} 15. Nxd5 {[%clk 0:01:44]}  cxd5 {[%clk 0:02:28]} 16. Bb5 {[%clk 0:01:39]}  Qe6 {[%clk 0:02:25]} 17. Qd4 {[%clk 0:01:29]}  Ne5 {[%clk 0:02:19]} 18. Qc3 {[%clk 0:00:39]}  Qg6 {[%clk 0:02:09]} 19. Bd2 {[%clk 0:00:20]}  Bf5 {[%clk 0:01:44]} 20. Nh4 {[%clk 0:00:16]}  Qf6 {[%clk 0:01:41]} 21. Nxf5 {[%clk 0:00:16]}  Qxf5 {[%clk 0:01:42]} 22. Qb3 {[%clk 0:00:13]}  d4 {[%clk 0:01:36]} 23. f4 {[%clk 0:00:12]}  Nc6 {[%clk 0:01:34]} 24. Bd3 {[%clk 0:00:11]}  Qd7 {[%clk 0:01:27]} 25. Re1 {[%clk 0:00:11]}  g6 {[%clk 0:01:24]} 26. Qd5 {[%clk 0:00:11]}  Re8 {[%clk 0:01:20]} 27. Rxe8 {[%clk 0:00:08]}  Qxe8 {[%clk 0:01:20]} 28. Bb5 {[%clk 0:00:07]}  Qc8 {[%clk 0:00:46]} 29. b3 {[%clk 0:00:04]}  Nb4 {[%clk 0:00:38]} 30. Bxb4 {[%clk 0:00:03]}  axb4 {[%clk 0:00:39]} 31. Bc4 {[%clk 0:00:03]}  Qc7 {[%clk 0:00:33]} 32. Qxd4 {[%clk 0:00:03]}  Bg7 {[%clk 0:00:26]} 33. Qe4 {[%clk 0:00:03]}  Bf6 {[%clk 0:00:24]} 34. Kh2 {[%clk 0:00:03]}  g5 {[%clk 0:00:22]} 35. Bd5 {[%clk 0:00:02]}  gxf4 {[%clk 0:00:20]} 36. Qf5 {[%clk 0:00:02]}  Kg7 {[%clk 0:00:20]} 37. Qg4+ {[%clk 0:00:03]}  Kf8 {[%clk 0:00:20]} 38. Qh5 {[%clk 0:00:03]}  Qc3 {[%clk 0:00:19]} 39. Qxh7 {[%clk 0:00:02]}  Qc7 {[%clk 0:00:18]} 40. Qe4 {[%clk 0:00:01]}  Qe7 {[%clk 0:00:18]} 41. Qf3 {[%clk 0:00:01]}  Qe5 {[%clk 0:00:18]} 42. Bxb7 {[%clk 0:00:02]}  Bh4 {[%clk 0:00:19]} 43. Be4 {[%clk 0:00:02]}  Bg3+ {[%clk 0:00:19]} 44. Kh1 {[%clk 0:00:02]}  f5 {[%clk 0:00:19]} 45. Bd3 {[%clk 0:00:02]}  Qe1+ {[%clk 0:00:19]} 46. Qf1 {[%clk 0:00:03]}  Qxf1+ {[%clk 0:00:20]} 47. Bxf1 {[%clk 0:00:03]}  Ke7 {[%clk 0:00:20]} 48. Bd3 {[%clk 0:00:04]}  Ke6 {[%clk 0:00:20]} 49. Kg1 {[%clk 0:00:04]}  Kd5 {[%clk 0:00:20]} 50. Bxf5 {[%clk 0:00:04]}  Kc5 {[%clk 0:00:20]} 51. Kf1 {[%clk 0:00:04]}  Kb6 {[%clk 0:00:13]} 52. Ke2 {[%clk 0:00:05]} 1-0


[Site "https://www.chess.com"]

[Event "Titled Tuesday Blitz January 17 Early 2023"]
[White "Salman, Pavel"]
[Black "Rakhmanov, Aleksandr"]
[WhiteFideId "24153753"]
[BlackFideId "4173708"]
[WhiteElo "2287"]
[BlackElo "2632"]
[Result "0-1"]
[Round "02"]
[TimeControl "180+2"]
[Date "2023.01.17"]
[WhiteClock "0:00:03"]
[BlackClock "0:00:08"]

1. Nf3 {[%clk 0:02:59]}  d5 {[%clk 0:02:55]} 2. g3 {[%clk 0:02:59]}  c6 {[%clk 0:02:54]} 3. Bg2 {[%clk 0:03:00]}  Bg4 {[%clk 0:02:53]} 4. O-O {[%clk 0:03:00]}  Nd7 {[%clk 0:02:51]} 5. d3 {[%clk 0:03:00]}  e6 {[%clk 0:02:51]} 6. h3 {[%clk 0:03:00]}  Bxf3 {[%clk 0:02:48]} 7. Bxf3 {[%clk 0:03:01]}  Bd6 {[%clk 0:02:48]} 8. e4 {[%clk 0:03:02]}  Ne7 {[%clk 0:02:47]} 9. Bg2 {[%clk 0:03:01]}  O-O {[%clk 0:02:38]} 10. Nc3 {[%clk 0:03:01]}  a5 {[%clk 0:02:34]} 11. a4 {[%clk 0:03:00]}  Qb6 {[%clk 0:02:24]} 12. Kh1 {[%clk 0:02:59]}  Rad8 {[%clk 0:02:16]} 13. Qe2 {[%clk 0:02:56]}  Rfe8 {[%clk 0:02:15]} 14. f4 {[%clk 0:02:56]}  Bc5 {[%clk 0:02:11]} 15. Nd1 {[%clk 0:02:43]}  dxe4 {[%clk 0:02:01]} 16. dxe4 {[%clk 0:02:42]}  e5 {[%clk 0:01:47]} 17. f5 {[%clk 0:02:40]}  Nc8 {[%clk 0:01:16]} 18. Bg5 {[%clk 0:02:24]}  f6 {[%clk 0:01:16]} 19. Bd2 {[%clk 0:02:19]}  Nd6 {[%clk 0:01:16]} 20. b3 {[%clk 0:02:14]}  Nf7 {[%clk 0:01:10]} 21. Ne3 {[%clk 0:02:09]}  Bb4 {[%clk 0:01:05]} 22. Nc4 {[%clk 0:02:05]}  Qa6 {[%clk 0:00:57]} 23. Bxb4 {[%clk 0:01:48]}  axb4 {[%clk 0:00:56]} 24. Qe3 {[%clk 0:01:49]}  b6 {[%clk 0:00:35]} 25. Rfd1 {[%clk 0:01:39]}  Qb7 {[%clk 0:00:32]} 26. a5 {[%clk 0:01:28]}  b5 {[%clk 0:00:27]} 27. a6 {[%clk 0:01:27]}  Qc7 {[%clk 0:00:26]} 28. Nb2 {[%clk 0:01:15]}  Ra8 {[%clk 0:00:19]} 29. Bf1 {[%clk 0:01:06]}  Ra7 {[%clk 0:00:16]} 30. Nd3 {[%clk 0:01:02]}  c5 {[%clk 0:00:16]} 31. Nf2 {[%clk 0:01:01]}  Rb8 {[%clk 0:00:16]} 32. h4 {[%clk 0:00:51]}  Rb6 {[%clk 0:00:14]} 33. g4 {[%clk 0:00:49]}  Qc6 {[%clk 0:00:14]} 34. g5 {[%clk 0:00:41]}  Rbxa6 {[%clk 0:00:13]} 35. Rxa6 {[%clk 0:00:41]}  Rxa6 {[%clk 0:00:13]} 36. g6 {[%clk 0:00:36]}  Nd6 {[%clk 0:00:10]} 37. gxh7+ {[%clk 0:00:34]}  Kh8 {[%clk 0:00:11]} 38. Kh2 {[%clk 0:00:20]}  c4 {[%clk 0:00:10]} 39. bxc4 {[%clk 0:00:16]}  bxc4 {[%clk 0:00:11]} 40. Rd5 {[%clk 0:00:16]}  Nf8 {[%clk 0:00:10]} 41. Qd2 {[%clk 0:00:15]}  c3 {[%clk 0:00:09]} 42. Qd3 {[%clk 0:00:14]}  Rb6 {[%clk 0:00:10]} 43. Ng4 {[%clk 0:00:12]}  b3 {[%clk 0:00:10]} 44. cxb3 {[%clk 0:00:12]}  c2 {[%clk 0:00:10]} 45. Rxd6 {[%clk 0:00:10]}  Qxd6 {[%clk 0:00:08]} 46. Qxc2 {[%clk 0:00:11]}  Qd4 {[%clk 0:00:05]} 47. Bc4 {[%clk 0:00:10]}  Rd6 {[%clk 0:00:04]} 48. Nf2 {[%clk 0:00:09]}  Qd2 {[%clk 0:00:05]} 49. Qxd2 {[%clk 0:00:09]}  Rxd2 {[%clk 0:00:06]} 50. Kg3 {[%clk 0:00:10]}  Kxh7 {[%clk 0:00:06]} 51. Nd3 {[%clk 0:00:09]}  Nd7 {[%clk 0:00:06]} 52. Nb4 {[%clk 0:00:09]}  Nb6 {[%clk 0:00:06]} 53. Nd5 {[%clk 0:00:09]}  Nxc4 {[%clk 0:00:06]} 54. bxc4 {[%clk 0:00:09]}  Rc2 {[%clk 0:00:06]} 55. Ne3 {[%clk 0:00:10]}  Rc3 {[%clk 0:00:06]} 56. Kf2 {[%clk 0:00:10]}  Kh6 {[%clk 0:00:05]} 57. Ke2 {[%clk 0:00:10]}  Kh5 {[%clk 0:00:06]} 58. Kd2 {[%clk 0:00:11]}  Ra3 {[%clk 0:00:07]} 59. c5 {[%clk 0:00:11]}  Kxh4 {[%clk 0:00:06]} 60. c6 {[%clk 0:00:12]}  Ra6 {[%clk 0:00:07]} 61. c7 {[%clk 0:00:12]}  Rc6 {[%clk 0:00:07]} 62. Nd5 {[%clk 0:00:13]}  Kg4 {[%clk 0:00:06]} 63. Ke3 {[%clk 0:00:13]}  Kg3 {[%clk 0:00:06]} 64. Ke2 {[%clk 0:00:13]}  Kh4 {[%clk 0:00:03]} 65. Kf3 {[%clk 0:00:13]}  Kh5 {[%clk 0:00:03]} 66. Kg3 {[%clk 0:00:13]}  Rc5 {[%clk 0:00:04]} 67. Kf3 {[%clk 0:00:13]}  Kg5 {[%clk 0:00:04]} 68. Kg3 {[%clk 0:00:13]}  Kh6 {[%clk 0:00:04]} 69. Kg4 {[%clk 0:00:13]}  Rc4 {[%clk 0:00:04]} 70. Kf3 {[%clk 0:00:13]}  Kg5 {[%clk 0:00:05]} 71. Kg3 {[%clk 0:00:12]}  Rc1 {[%clk 0:00:04]} 72. Kf3 {[%clk 0:00:12]}  Kh4 {[%clk 0:00:04]} 73. Ke3 {[%clk 0:00:12]}  Kg3 {[%clk 0:00:05]} 74. Kd3 {[%clk 0:00:12]}  Rc5 {[%clk 0:00:02]} 75. Ke3 {[%clk 0:00:12]}  Kg2 {[%clk 0:00:03]} 76. Ke2 {[%clk 0:00:12]}  Rc6 {[%clk 0:00:03]} 77. Ke3 {[%clk 0:00:13]}  Kf1 {[%clk 0:00:04]} 78. Kf3 {[%clk 0:00:11]}  Ke1 {[%clk 0:00:04]} 79. Ke3 {[%clk 0:00:11]}  Rc5 {[%clk 0:00:05]} 80. Kf3 {[%clk 0:00:06]}  Kd2 {[%clk 0:00:05]} 81. Kf2 {[%clk 0:00:04]}  Kd3 {[%clk 0:00:05]} 82. Kf3 {[%clk 0:00:04]}  Rc4 {[%clk 0:00:06]} 83. Kg4 {[%clk 0:00:03]}  Kxe4 {[%clk 0:00:05]} 84. Ne7 {[%clk 0:00:02]}  Rxc7 {[%clk 0:00:05]} 85. Ng6 {[%clk 0:00:03]}  Rc1 {[%clk 0:00:06]} 86. Kh5 {[%clk 0:00:04]}  Rg1 {[%clk 0:00:06]} 87. Nh4 {[%clk 0:00:05]}  Kd5 {[%clk 0:00:06]} 88. Nf3 {[%clk 0:00:04]}  Rf1 {[%clk 0:00:06]} 89. Nh2 {[%clk 0:00:04]}  Rxf5+ {[%clk 0:00:07]} 90. Kg6 {[%clk 0:00:04]}  Rf2 {[%clk 0:00:07]} 91. Ng4 {[%clk 0:00:03]}  Rg2 {[%clk 0:00:08]} 92. Kf5 {[%clk 0:00:03]}  Rxg4 {[%clk 0:00:08]} 0-1


[Site "https://www.chess.com"]

[Event "Titled Tuesday Blitz January 17 Early 2023"]
[White "Boruchovsky, Avital"]
[Black "Fiorito, Francisco"]
[WhiteFideId "2800055"]
[BlackFideId "180165"]
[WhiteElo "2539"]
[BlackElo "2305"]
[Result "1-0"]
[Round "02"]
[TimeControl "180+2"]
[Date "2023.01.17"]
[WhiteClock "0:00:20"]
[BlackClock "0:00:14"]

1. b3 {[%clk 0:02:56]}  Nf6 {[%clk 0:02:57]} 2. Bb2 {[%clk 0:02:57]}  d5 {[%clk 0:02:57]} 3. Nf3 {[%clk 0:02:57]}  c5 {[%clk 0:02:57]} 4. d4 {[%clk 0:02:57]}  cxd4 {[%clk 0:02:55]} 5. Nbd2 {[%clk 0:02:50]}  g6 {[%clk 0:02:49]} 6. Nxd4 {[%clk 0:02:45]}  Bg7 {[%clk 0:02:48]} 7. c4 {[%clk 0:02:43]}  O-O {[%clk 0:02:43]} 8. e3 {[%clk 0:02:43]}  Nc6 {[%clk 0:02:33]} 9. Be2 {[%clk 0:02:37]}  Re8 {[%clk 0:02:17]} 10. Nxc6 {[%clk 0:01:57]}  bxc6 {[%clk 0:02:15]} 11. Nf3 {[%clk 0:01:44]}  Bf5 {[%clk 0:02:12]} 12. O-O {[%clk 0:01:44]}  Qa5 {[%clk 0:01:44]} 13. Qc1 {[%clk 0:01:43]}  Rac8 {[%clk 0:01:41]} 14. Bc3 {[%clk 0:01:41]}  Qb6 {[%clk 0:01:38]} 15. Qb2 {[%clk 0:01:40]}  Bh6 {[%clk 0:01:29]} 16. Bd4 {[%clk 0:01:22]}  Qb7 {[%clk 0:01:21]} 17. Rac1 {[%clk 0:01:18]}  Ne4 {[%clk 0:01:18]} 18. cxd5 {[%clk 0:01:17]}  cxd5 {[%clk 0:01:19]} 19. Nd2 {[%clk 0:01:01]}  Nxd2 {[%clk 0:00:50]} 20. Qxd2 {[%clk 0:01:02]}  e5 {[%clk 0:00:49]} 21. Rxc8 {[%clk 0:01:02]}  Qxc8 {[%clk 0:00:49]} 22. Bxa7 {[%clk 0:00:59]}  d4 {[%clk 0:00:48]} 23. Qb4 {[%clk 0:00:49]}  Qa8 {[%clk 0:00:43]} 24. Bc5 {[%clk 0:00:47]}  Qxa2 {[%clk 0:00:35]} 25. Bb5 {[%clk 0:00:45]}  Rb8 {[%clk 0:00:31]} 26. exd4 {[%clk 0:00:40]}  Bd3 {[%clk 0:00:28]} 27. Qa4 {[%clk 0:00:37]}  Qxa4 {[%clk 0:00:28]} 28. bxa4 {[%clk 0:00:36]}  Bxf1 {[%clk 0:00:24]} 29. Kxf1 {[%clk 0:00:37]}  exd4 {[%clk 0:00:21]} 30. Bxd4 {[%clk 0:00:37]}  Bd2 {[%clk 0:00:21]} 31. Ke2 {[%clk 0:00:37]}  Ba5 {[%clk 0:00:21]} 32. Kd3 {[%clk 0:00:37]}  Rc8 {[%clk 0:00:20]} 33. h3 {[%clk 0:00:32]}  Kf8 {[%clk 0:00:20]} 34. Bf6 {[%clk 0:00:28]}  Bb6 {[%clk 0:00:17]} 35. f3 {[%clk 0:00:28]}  h5 {[%clk 0:00:17]} 36. Bc3 {[%clk 0:00:28]}  Rb8 {[%clk 0:00:14]} 37. Kc4 {[%clk 0:00:24]}  Rc8+ {[%clk 0:00:15]} 38. Kb3 {[%clk 0:00:25]}  Ra8 {[%clk 0:00:14]} 39. Bb4+ {[%clk 0:00:23]}  Kg7 {[%clk 0:00:14]} 40. Kc4 {[%clk 0:00:23]}  Kf6 {[%clk 0:00:13]} 41. Kd5 {[%clk 0:00:22]}  Rc8 {[%clk 0:00:14]} 42. a5 {[%clk 0:00:22]}  Ba7 {[%clk 0:00:14]} 43. a6 {[%clk 0:00:20]}  Kf5 {[%clk 0:00:14]} 44. Bd7+ {[%clk 0:00:20]} 1-0


[Site "https://www.chess.com"]

[Event "Titled Tuesday Blitz January 17 Early 2023"]
[White "Lagno, Kateryna"]
[Black "ArchibaldCerveza29"]
[WhiteFideId "14109336"]
[WhiteElo "2558"]
[BlackElo "2547"]
[Result "0-1"]
[Round "02"]
[TimeControl "180+2"]
[Date "2023.01.17"]
[WhiteClock "0:00:19"]
[BlackClock "0:00:05"]

1. e4 {[%clk 0:02:57]}  e5 {[%clk 0:03:00]} 2. Nf3 {[%clk 0:02:56]}  Nc6 {[%clk 0:03:00]} 3. Bb5 {[%clk 0:02:57]}  g6 {[%clk 0:03:00]} 4. h4 {[%clk 0:02:52]}  h6 {[%clk 0:02:56]} 5. h5 {[%clk 0:02:49]}  g5 {[%clk 0:02:57]} 6. d4 {[%clk 0:02:47]}  exd4 {[%clk 0:02:56]} 7. Nxd4 {[%clk 0:02:48]}  Nge7 {[%clk 0:02:46]} 8. Nc3 {[%clk 0:02:34]}  Bg7 {[%clk 0:02:45]} 9. Be3 {[%clk 0:02:35]}  a6 {[%clk 0:02:42]} 10. Bc4 {[%clk 0:02:33]}  d6 {[%clk 0:02:30]} 11. Qd2 {[%clk 0:02:32]}  Ne5 {[%clk 0:02:19]} 12. Bb3 {[%clk 0:02:29]}  b5 {[%clk 0:02:03]} 13. Nd5 {[%clk 0:02:16]}  c5 {[%clk 0:01:40]} 14. Nxe7 {[%clk 0:01:19]}  cxd4 {[%clk 0:01:34]} 15. Bxg5 {[%clk 0:01:10]}  hxg5 {[%clk 0:01:29]} 16. Qxg5 {[%clk 0:01:10]}  Qxe7 {[%clk 0:01:06]} 17. Qxg7 {[%clk 0:01:10]}  Qf8 {[%clk 0:01:07]} 18. h6 {[%clk 0:01:00]}  Be6 {[%clk 0:00:44]} 19. Bxe6 {[%clk 0:00:54]}  fxe6 {[%clk 0:00:45]} 20. Qb7 {[%clk 0:00:51]}  Rd8 {[%clk 0:00:41]} 21. O-O-O {[%clk 0:00:49]}  Rxh6 {[%clk 0:00:38]} 22. Qxa6 {[%clk 0:00:49]}  Qh8 {[%clk 0:00:16]} 23. Qxb5+ {[%clk 0:00:48]}  Ke7 {[%clk 0:00:16]} 24. Rxh6 {[%clk 0:00:43]}  Qxh6+ {[%clk 0:00:17]} 25. Kb1 {[%clk 0:00:43]}  Rd7 {[%clk 0:00:18]} 26. a4 {[%clk 0:00:42]}  d3 {[%clk 0:00:18]} 27. cxd3 {[%clk 0:00:41]}  Qf4 {[%clk 0:00:18]} 28. f3 {[%clk 0:00:40]}  Qe3 {[%clk 0:00:17]} 29. d4 {[%clk 0:00:39]}  Ng6 {[%clk 0:00:16]} 30. Rd3 {[%clk 0:00:37]}  Qe1+ {[%clk 0:00:16]} 31. Ka2 {[%clk 0:00:37]}  Qh4 {[%clk 0:00:11]} 32. a5 {[%clk 0:00:36]}  Nf4 {[%clk 0:00:11]} 33. Ra3 {[%clk 0:00:36]}  Qe1 {[%clk 0:00:09]} 34. a6 {[%clk 0:00:36]}  Ne2 {[%clk 0:00:08]} 35. Ra4 {[%clk 0:00:26]}  Nc1+ {[%clk 0:00:07]} 36. Ka3 {[%clk 0:00:27]}  Ne2 {[%clk 0:00:05]} 37. a7 {[%clk 0:00:22]}  Qa1+ {[%clk 0:00:05]} 38. Kb3 {[%clk 0:00:22]}  Qd1+ {[%clk 0:00:05]} 39. Ka2 {[%clk 0:00:21]}  Nc1+ {[%clk 0:00:05]} 40. Ka3 {[%clk 0:00:21]}  Nd3 {[%clk 0:00:05]} 41. a8=Q {[%clk 0:00:19]}  Qa1+ {[%clk 0:00:04]} 42. Kb3 {[%clk 0:00:19]}  Qxb2+ {[%clk 0:00:04]} 43. Kc4 {[%clk 0:00:19]}  Qc2# {[%clk 0:00:05]} 0-1


[Site "https://www.chess.com"]

[Event "Titled Tuesday Blitz January 17 Early 2023"]
[White "Schekachikhin, Maksim"]
[Black "Rustemov, Alexander"]
[WhiteFideId "24177830"]
[BlackFideId "4119002"]
[WhiteElo "2371"]
[BlackElo "2525"]
[Result "0-1"]
[Round "02"]
[TimeControl "180+2"]
[Date "2023.01.17"]
[WhiteClock "0:00:35"]
[BlackClock "0:01:05"]

1. Nf3 {[%clk 0:03:00]}  d5 {[%clk 0:02:59]} 2. b3 {[%clk 0:03:00]}  c6 {[%clk 0:02:59]} 3. Bb2 {[%clk 0:03:00]}  Bf5 {[%clk 0:02:59]} 4. d3 {[%clk 0:03:01]}  e6 {[%clk 0:02:59]} 5. Nbd2 {[%clk 0:03:01]}  h6 {[%clk 0:02:57]} 6. g3 {[%clk 0:03:02]}  Nf6 {[%clk 0:02:57]} 7. Bg2 {[%clk 0:03:02]}  Be7 {[%clk 0:02:57]} 8. Ne5 {[%clk 0:02:56]}  Nbd7 {[%clk 0:02:52]} 9. e4 {[%clk 0:02:56]}  Bh7 {[%clk 0:02:51]} 10. Nxd7 {[%clk 0:02:44]}  Qxd7 {[%clk 0:02:46]} 11. Qe2 {[%clk 0:02:40]}  O-O {[%clk 0:02:45]} 12. e5 {[%clk 0:02:33]}  Ne8 {[%clk 0:02:43]} 13. O-O {[%clk 0:02:31]}  Nc7 {[%clk 0:02:41]} 14. f4 {[%clk 0:02:29]}  a5 {[%clk 0:02:39]} 15. a4 {[%clk 0:02:25]}  Na6 {[%clk 0:02:35]} 16. g4 {[%clk 0:02:15]}  Nb4 {[%clk 0:02:35]} 17. Nf3 {[%clk 0:02:13]}  c5 {[%clk 0:02:26]} 18. Rad1 {[%clk 0:02:07]}  d4 {[%clk 0:02:22]} 19. Kh1 {[%clk 0:01:57]}  Nd5 {[%clk 0:02:22]} 20. Bc1 {[%clk 0:01:39]}  Nc3 {[%clk 0:02:21]} 21. Qf2 {[%clk 0:01:39]}  Nxd1 {[%clk 0:02:21]} 22. Rxd1 {[%clk 0:01:40]}  Rae8 {[%clk 0:02:03]} 23. Re1 {[%clk 0:01:37]}  f6 {[%clk 0:02:01]} 24. Qg3 {[%clk 0:01:34]}  Bd8 {[%clk 0:01:51]} 25. exf6 {[%clk 0:01:29]}  gxf6 {[%clk 0:01:44]} 26. g5 {[%clk 0:01:27]}  Qg7 {[%clk 0:01:36]} 27. Rg1 {[%clk 0:00:59]}  Kh8 {[%clk 0:01:23]} 28. Qh3 {[%clk 0:00:51]}  fxg5 {[%clk 0:01:19]} 29. fxg5 {[%clk 0:00:51]}  hxg5 {[%clk 0:01:18]} 30. Nxg5 {[%clk 0:00:41]}  Bxg5 {[%clk 0:01:15]} 31. Be4 {[%clk 0:00:41]}  Qh6 {[%clk 0:01:05]} 32. Qxh6 {[%clk 0:00:37]}  Bxh6 {[%clk 0:01:05]} 33. Bxh6 {[%clk 0:00:36]}  Bxe4+ {[%clk 0:01:06]} 34. dxe4 {[%clk 0:00:35]}  Rg8 {[%clk 0:01:05]} 0-1


[Site "https://www.chess.com"]